fUSD/lending_fUSD_20260322
["ID","MTS","AMOUNT","RATE_DAILY","PERIOD"]
[408718030,1774168241334,-500.0,0.00013698,2]
[408718031,1774168241344,-500.0,0.00013698,2]
[408718032,1774168241355,-500.0,0.00013698,2]
[408718033,1774168241366,-500.0,0.00013698,2]
[408718034,1774168241375,-500.0,0.00013698,2]
[408718035,1774168241386,-500.0,0.00013698,2]
[408718036,1774168241397,-500.0,0.00013698,2]
[408718037,1774168241407,-500.0,0.00013698,2]
[408718038,1774168241420,-500.0,0.00013698,2]
[408718039,1774168241429,-500.0,0.00013698,2]
[408718040,1774168241439,-500.0,0.00013698,2]
[408718041,1774168241448,-194.24175417,0.00013698,2]
[408718042,1774168241458,-396.45,0.00013699,2]
[408718043,1774168241468,-500.0,0.00013699,2]
[408718044,1774168241478,-347.47666717,0.00013699,2]
[408718045,1774168241488,-500.0,0.00013699,2]
[408718046,1774168241498,-500.70382414,0.00013699,2]
[408718047,1774168241507,-500.0,0.00013699,2]
[408718048,1774168241517,-500.4848322,0.00013699,2]
[408718049,1774168241526,-500.0,0.00013699,2]
[408718050,1774168241535,-500.43058459,0.00013699,2]
[408718051,1774168241545,-500.74920901,0.00013699,2]
[408718052,1774168241554,-500.0,0.00013699,2]
[408718053,1774168241563,-500.0,0.00013699,2]
[408718054,1774168241572,-500.0,0.00013699,2]
[408718055,1774168241581,-500.0,0.00013699,2]
[408718056,1774168241591,-500.0,0.00013699,2]
[408718057,1774168241600,-500.0,0.00013699,2]
[408718058,1774168241785,-500.55967201,0.00013699,2]
[408718059,1774168241795,-500.0,0.00013699,2]
[408718060,1774168241805,-500.0,0.00013699,2]
[408718061,1774168241815,-500.0,0.00013699,2]
[408718062,1774168241824,-500.0,0.00013699,2]
[408718063,1774168241834,-390.12270077,0.00013699,2]
[408718064,1774168241843,-500.44177829,0.00013699,2]
[408718065,1774168241853,-500.0,0.00013699,2]
[408718066,1774168241863,-10903.52,0.00013699,2]
[408718067,1774168241874,-9999.99,0.00013699,2]
[408718068,1774168241884,-1209.03,0.00013699,2]
[408718069,1774168241893,-323.15693905,0.00013699,2]
[408718070,1774168241903,-279.31,0.000137,2]
[408718071,1774168241914,-2126.3,0.000137,2]
[408718072,1774168241923,-592.52,0.000137,2]
[408718073,1774168241935,-893.98,0.000137,2]
[408718074,1774168241944,-1165.19,0.000137,2]
[408718075,1774168241954,-991.51,0.000137,2]
[408718076,1774168241964,-420.0,0.00013714,2]
[408718077,1774168241973,-420.0,0.00013714,2]
[408718078,1774168241982,-1680.0,0.00013749,2]
[408718079,1774168241991,-195.0,0.0001375,2]
[408718080,1774168242001,-195.0,0.0001375,2]
[408718081,1774168242010,-195.0,0.0001375,2]
[408718082,1774168242019,-195.0,0.0001375,2]
[408718083,1774168242029,-274.8699727,0.0001375,2]
[408718084,1774168242038,-5000.0,0.0001375,2]
[408718085,1774168242047,-250.0,0.0001375,2]
[408718086,1774168242057,-600.0,0.0001375,2]
[408718087,1774168242066,-600.0,0.0001375,2]
[408718088,1774168242076,-600.0,0.0001375,2]
[408718089,1774168242085,-600.0,0.0001375,2]
[408718090,1774168242094,-600.0,0.0001375,2]
[408718091,1774168242104,-500.0,0.0001375,2]
[408718092,1774168242113,-500.0,0.0001375,2]
[408718093,1774168242122,-500.0,0.0001375,2]
[408718094,1774168242131,-500.0,0.0001375,2]
[408718095,1774168242141,-500.0,0.0001375,2]
[408718096,1774168242150,-300.0,0.0001375,2]
[408718097,1774168242160,-300.0,0.0001375,2]
[408718098,1774168242170,-300.0,0.0001375,2]
[408718099,1774168242178,-300.0,0.0001375,2]
[408718100,1774168242187,-300.0,0.0001375,2]
[408718101,1774168242197,-2500.0,0.0001375,2]
[408718102,1774168242207,-983.01365548,0.0001375,2]
[408718103,1774168242216,-250.0,0.0001375,2]
[408718104,1774168242226,-629.11,0.00013755,2]
[408718105,1774168242236,-79016.05291952,0.0001399,2]
[408718106,1774168242246,-521.0,0.00014,2]
[408718107,1774168242255,-629.11,0.00014029,2]
[408718108,1774168242266,-13700.72732669,0.00014067,2]
[408718109,1774168242275,-500.0,0.00014073,2]
[408718110,1774168242284,-655.4067427,0.00014247,2]
[408718111,1774168242294,-1000.0,0.00014247,2]
[408718112,1774168242304,-1000.0,0.00014247,2]
[408718113,1774168242314,-1000.0,0.00014247,2]
[408718114,1774168242324,-1000.0,0.00014247,2]
[408718115,1774168242333,-1000.0,0.00014247,2]
[408718116,1774168242343,-1000.0,0.00014247,2]
[408718117,1774168242353,-501.4021552,0.00014247,2]
[408718118,1774168242363,-500.67270798,0.00014247,2]
[408718119,1774168242373,-713.64434561,0.00014247,2]
[408718120,1774168242383,-1000.0,0.00014247,2]
[408718121,1774168242392,-1000.0,0.00014247,2]
[408718122,1774168242402,-1000.0,0.00014247,2]
[408718123,1774168242413,-194.73,0.00014277,2]
[408718124,1774168242424,-629.11,0.00014303,2]
[408718125,1774168242435,-396.45,0.00014384,2]
[408718126,1774168242444,-13700.72732669,0.00014445,2]
[408718127,1774168242455,-698.79,0.000145,2]
[408718128,1774168242465,-629.15612025,0.00014577,2]
[408718129,1774168242475,-1001.53007131,0.00014621,2]
[408718130,1774168242485,-161.0,0.0001472,2]
[408718131,1774168242495,-1500.0,0.00014795,2]
[408718132,1774168242504,-1500.0,0.00014795,2]
[408718134,1774168242514,-1500.0,0.00014795,2]
[408718135,1774168242524,-759.99072283,0.00014795,2]
[408718136,1774168242534,-222.68518983,0.00014795,2]
[408718137,1774168242545,-1073.03260881,0.00014795,2]
[408718138,1774168242554,-13700.72732669,0.00014822,2]
[408718139,1774168242564,-433.0,0.00014843,2]
[408718140,1774168242574,-250.0,0.00015,2]
[408718141,1774168242584,-2063.71846388,0.00015,2]
[408718142,1774168242594,-2428.27013508,0.00015,14]
[408718143,1774168242604,-8034.12425603,0.00015,2]
[408718144,1774168242614,-2403.0,0.0001504,2]
[408718145,1774168242624,-587.0,0.00015048,2]
[408718146,1774168242634,-248.0,0.00015048,2]
[408718147,1774168242644,-396.45,0.00015068,2]
[408718148,1774168242654,-2351.0,0.00015124,2]
[408718149,1774168242665,-13700.72732669,0.00015199,2]
[408718150,1774168242675,-13700.72732669,0.00015576,2]
[408718151,1774168242685,-239.0,0.000156,2]
[408718152,1774168242695,-356.656858,0.0001568,7]
[408718153,1774168242705,-357.832979,0.0001568,7]
[408718154,1774168242715,-396.45,0.00015753,2]
[408718155,1774168242725,-991.51,0.000158,2]
[408718156,1774168242735,-74178.16872089,0.000159,2]
[408718157,1774168242744,-500.0,0.000159,5]
[408718158,1774168242754,-1165.19,0.000159,2]
[408718159,1774168242764,-13700.72732669,0.00015953,2]
[408718160,1774168242773,-267.46783481,0.0001599,2]
[408718161,1774168242783,-2918205.69615379,0.00016,2]
[408718163,1774168242792,-434.35531069,0.00016,2]
[408718167,1774168242802,-168.0,0.00016053,2]
[408718169,1774168242812,-1096.0,0.00016069,2]
[408718171,1774168242821,-9999.99,0.00016116,2]
[408718173,1774168242832,-168.0,0.00016117,2]
[408718174,1774168242842,-736.0,0.00016124,2]
[408718176,1774168242852,-1096.0,0.00016148,2]
[408718178,1774168242862,-168.0,0.00016155,2]
[408718180,1774168242871,-5000.0,0.000162,5]
[408718182,1774168242880,-2403.0,0.0001624,2]
[408718184,1774168242890,-152.5087,0.000163,2]
[408718186,1774168242900,-168.0,0.00016306,2]
[408718188,1774168242910,-1096.0,0.00016336,2]
[408718190,1774168242919,-164.665911,0.00016348,7]
[408718192,1774168242929,-470.076472,0.00016392,7]
[408718194,1774168242940,-1096.0,0.00016437,2]
[408718195,1774168242950,-396.45,0.00016438,2]
[408718197,1774168242960,-1096.0,0.00016507,2]
[408718198,1774168242969,-823.0,0.00016511,2]
[408718199,1774168242979,-250.0,0.00016515,2]
[408718200,1774168242988,-1096.0,0.00016624,2]
[408718201,1774168242998,-3292.0,0.00016636,2]
[408718202,1774168243008,-1096.0,0.00016656,2]
[408718203,1774168243018,-168.0,0.00016658,2]
[408718204,1774168243028,-168.0,0.00016672,2]
[408718205,1774168243038,-979.16666667,0.00016697,2]
[408718206,1774168243047,-160.0,0.00016697,2]
[408718207,1774168243057,-160.0,0.00016698,2]
[408718208,1774168243066,-1096.0,0.00016716,2]
[408718209,1774168243076,-150.0,0.0001683,14]
[408718210,1774168243086,-168.0,0.00016867,2]
[408718211,1774168243095,-592.52,0.000169,2]
[408718212,1774168243104,-893.98,0.000169,2]
[408718213,1774168243115,-1096.0,0.00016911,2]
[408718214,1774168243125,-1195.23419118,0.00017,30]
[408718215,1774168243134,-300.0,0.00017,2]
[408718216,1774168243144,-1096.0,0.00017036,2]
[408718217,1774168243154,-1096.0,0.00017043,2]
[408718218,1774168243164,-168.0,0.00017062,2]
[408718219,1774168243174,-1096.0,0.00017073,2]
[408718220,1774168243184,-2126.3,0.000171,2]
[408718221,1774168243194,-168.0,0.00017127,2]
[408718222,1774168243204,-168.0,0.00017133,2]
[408718223,1774168243215,-1096.0,0.00017162,2]
[408718224,1774168243226,-279.31,0.000172,2]
[408718225,1774168243237,-1096.0,0.00017278,2]
[408718226,1774168243247,-1096.0,0.00017332,2]
[408718227,1774168243257,-3807.75747175,0.00017448,2]
[408718228,1774168243266,-1252.0,0.00017531,2]
[408718229,1774168243276,-1600.0,0.00017723,2]
[408718230,1774168243285,-991.51,0.000178,2]
[408718231,1774168243294,-1152.0,0.00018116,2]
[408718232,1774168243303,-4609.0,0.000183,2]
[408718233,1774168243312,-1165.19,0.000184,2]
[408718234,1774168243321,-308.47240642,0.000188,2]
[408718235,1774168243330,-2129.0,0.00019063,2]
[408718236,1774168243339,-20279.91,0.00019178,2]
[408718237,1774168243348,-37118.03,0.000192,2]
[408718238,1774168243357,-780.0,0.0001924,2]
[408718239,1774168243366,-200.0,0.00019726,2]
[408718240,1774168243375,-1613.0,0.00019877,2]
[408718241,1774168243384,-1600.0,0.00019938,2]
[408718242,1774168243393,-200.0,0.0002,10]
[408718243,1774168243402,-261.45711386,0.0002,30]
[408718244,1774168243415,-155.0595,0.0002,2]
[408718245,1774168243424,-231.57253289,0.00020066,16]
[408718246,1774168243433,-300.0,0.000201,10]
[408718247,1774168243442,-6453.0,0.0002013,2]
[408718248,1774168243452,-442.75,0.00020429,2]
[408718249,1774168243463,-150.0,0.00020562,2]
[408718250,1774168243472,-776.61029799,0.00020562,2]
[408718251,1774168243481,-150.0,0.00020562,2]
[408718252,1774168243492,-405.0,0.00020721,2]
[408718253,1774168243502,-594.0,0.00020848,10]
[408718254,1774168243511,-472.0,0.00020848,10]
[408718255,1774168243521,-893.98,0.000209,7]
[408718256,1774168243530,-194.73,0.00020989,2]
[408718257,1774168243539,-300.14839608,0.00021,120]
[408718258,1774168243549,-991.51,0.00021,2]
[408718259,1774168243558,-12604.1,0.00021068,2]
[408718260,1774168243568,-6424.04,0.0002137,2]
[408718261,1774168243578,-2258.0,0.00021809,2]
[408718262,1774168243588,-150.0,0.00021862,2]
[408718263,1774168243597,-1261.0,0.00021862,2]
[408718264,1774168243607,-924.0,0.00021862,2]
[408718265,1774168243617,-1215.0,0.00021862,2]
[408718266,1774168243627,-1345.0,0.00021862,2]
[408718267,1774168243636,-3514.0,0.00021862,2]
[408718268,1774168243645,-592.52,0.000219,2]
[408718269,1774168243659,-3055.64,0.00021918,2]
[408718270,1774168243669,-5000.0,0.00021918,2]
[408718271,1774168243678,-1000.0,0.00021918,2]
[408718272,1774168243688,-1000.0,0.00021918,2]
[408718273,1774168243698,-1000.0,0.00021918,2]
[408718274,1774168243707,-1000.0,0.00021918,2]
[408718275,1774168243717,-1000.0,0.00021918,2]
[408718276,1774168243727,-1000.0,0.00021918,2]
[408718277,1774168243736,-1000.0,0.00021918,2]
[408718278,1774168243745,-1000.0,0.00021918,2]
[408718279,1774168243755,-924.80475936,0.00022,2]
[408718280,1774168243764,-1498.68771663,0.00022,30]
[408718281,1774168243773,-245.0,0.00022,2]
[408718282,1774168243783,-414.26,0.00022,30]
[408718283,1774168243793,-9035.0,0.00022143,2]
[408718284,1774168243802,-1600.0,0.00022154,2]
[408718285,1774168243811,-2126.3,0.000222,2]
[408718286,1774168243820,-3807.75747175,0.00022338,2]
[408718287,1774168243829,-1165.19,0.000224,7]
[408718288,1774168243838,-186.40036,0.0002263,7]
[408718289,1774168243847,-1568.0,0.00022765,3]
[408718290,1774168243857,-245.0,0.00023,2]
[408718291,1774168243866,-2768.49,0.00023066,2]
[408718292,1774168243876,-164.89346,0.00023461,14]
[408718293,1774168243886,-154.38343801,0.00023684,2]
[408718294,1774168243897,-279.31,0.000237,7]
[408718295,1774168243906,-157.6529,0.000237,2]
[408718296,1774168243916,-171.81,0.00023711,2]
[408718297,1774168243926,-150.0,0.00023741,7]
[408718298,1774168243936,-284.934172,0.00023743,7]
[408718299,1774168243946,-3162.0,0.0002393,2]
[408718300,1774168243957,-245.0,0.00024,2]
[408718302,1774168243967,-1600.0,0.00024369,2]
[408718304,1774168243977,-37118.03,0.000244,7]
[408718306,1774168243987,-338.479928,0.00024402,14]
[408718308,1774168243997,-318.48764684,0.0002465,120]
[408718309,1774168244007,-150.0,0.00024658,2]
[408718310,1774168244016,-874.41,0.00024658,2]
[408718311,1774168244026,-991.51,0.000247,7]
[408718312,1774168244035,-1223.53,0.00024819,2]
[408718313,1774168244044,-379.98,0.00024819,2]
[408718314,1774168244055,-1418.5,0.00024819,2]
[408718315,1774168244064,-1345.0,0.00024862,2]
[408718316,1774168244074,-3514.0,0.00024862,2]
[408718317,1774168244083,-500.0,0.00024899,2]
[408718318,1774168244093,-571.85993226,0.00024899,2]
[408718319,1774168244103,-500.0,0.00024899,2]
[408718320,1774168244113,-893.98,0.000249,7]
[408718321,1774168244122,-500.0,0.000249,9]
[408718322,1774168244131,-13738.5736834,0.000249,3]
[408718323,1774168244141,-216.0,0.0002493,30]
[408718324,1774168244150,-245.0,0.00025,2]
[408718325,1774168244159,-160.0,0.00025,3]
[408718326,1774168244169,-160.0,0.00025,7]
[408718327,1774168244178,-221.85882281,0.00025,120]
[408718328,1774168244188,-521.0,0.00025,11]
[408718329,1774168244196,-300.0,0.000251,7]
[408718330,1774168244205,-150.0,0.0002589,2]
[408718331,1774168244214,-194.73,0.00025926,2]
[408718332,1774168244224,-245.0,0.00026,2]
[408718333,1774168244233,-414.26,0.00026192,30]
[408718334,1774168244243,-4229.0,0.00026256,2]
[408718335,1774168244252,-873.95,0.0002643,2]
[408718336,1774168244262,-331.23,0.0002643,2]
[408718337,1774168244271,-1013.21,0.0002643,2]
[408718338,1774168244280,-1165.19,0.000265,7]
[408718339,1774168244289,-1600.0,0.00026585,120]
[408718340,1774168244299,-592.52,0.000266,7]
[408718341,1774168244308,-800.0,0.00026986,120]
[408718342,1774168244318,-800.0,0.00026986,120]
[408718343,1774168244328,-800.0,0.00026986,120]
[408718344,1774168244338,-261.4,0.00027,2]
[408718345,1774168244347,-747.28321255,0.00027,120]
[408718346,1774168244356,-278.62222136,0.00027,120]
[408718347,1774168244366,-150.0,0.00027185,2]
[408718348,1774168244376,-3807.75747175,0.00027227,2]
[408718349,1774168244386,-300.0,0.00027397,2]
[408718350,1774168244395,-874.41,0.00027397,2]
[408718351,1774168244404,-160.2897,0.000274,2]
[408718352,1774168244416,-1336.26649901,0.00027568,4]
[408718353,1774168244426,-10000.0,0.00027662,2]
[408718354,1774168244435,-3514.0,0.00027862,2]
[408718355,1774168244445,-500.0,0.00027891,120]
[408718356,1774168244455,-908.46,0.00027972,2]
[408718357,1774168244465,-432.523649,0.00028,60]
[408718358,1774168244474,-150.0,0.00028544,2]
[408718359,1774168244484,-202.985,0.0002876,30]
[408718360,1774168244494,-1886.19,0.00029224,2]
[408718361,1774168244505,-2126.3,0.000293,2]
[408718362,1774168244515,-991.51,0.000293,7]
[408718363,1774168244524,-202.985,0.00029308,30]
[408718364,1774168244535,-3688.1,0.00029621,2]
[408718365,1774168244543,-37118.03,0.000297,7]
[408718366,1774168244551,-500.0,0.0002978,120]
[408718367,1774168244559,-479.84619912,0.00029813,2]
[408718368,1774168244568,-202.985,0.00029856,30]
[408718369,1774168244576,-150.0,0.00029971,2]
[408718370,1774168244584,-362.72905046,0.0003,30]
[408718371,1774168244594,-279.31,0.0003,7]
[408718372,1774168244603,-714.07816869,0.0003,120]
[408718373,1774168244613,-218.56334008,0.0003,120]
[408718374,1774168244623,-1414.99878496,0.0003,120]
[408718375,1774168244632,-1165.19,0.0003,7]
[408718376,1774168244641,-519.80003167,0.0003,30]
[408718377,1774168244651,-150.0,0.0003,2]
[408718378,1774168244660,-1600.00284477,0.0003,120]
[408718379,1774168244670,-2403.0,0.00030115,3]
[408718380,1774168244679,-210.84932622,0.0003013,30]
[408718381,1774168244689,-300.0,0.0003013,30]
[408718382,1774168244698,-874.41,0.00030137,2]
[408718383,1774168244708,-164.89346,0.00030164,14]
[408718384,1774168244717,-150.0,0.00030288,2]
[408718385,1774168244728,-893.98,0.000303,30]
[408718386,1774168244738,-414.26,0.00030384,60]
[408718387,1774168244748,-2000.0,0.00030732,2]
[408718388,1774168244757,-2000.0,0.00030732,2]
[408718389,1774168244767,-2000.0,0.00030732,2]
[408718390,1774168244777,-2000.0,0.00030732,2]
[408718391,1774168244786,-2000.0,0.00030732,2]
[408718392,1774168244796,-2000.0,0.00030732,2]
[408718393,1774168244805,-2000.0,0.00030732,2]
[408718394,1774168244815,-2000.0,0.00030732,2]
[408718395,1774168244824,-2000.0,0.00030732,2]
[408718396,1774168244833,-2000.0,0.00030732,2]
[408718397,1774168244843,-250.0,0.000308,30]
[408718398,1774168244987,-3514.0,0.00030862,2]
[408718399,1774168244997,-162.9706,0.000312,2]
[408718400,1774168245007,-202.985,0.00031226,30]
[408718401,1774168245017,-515.73565323,0.000314,30]
[408718402,1774168245026,-150.0,0.0003147,2]
[408718403,1774168245035,-500.0,0.00031669,120]
[408718404,1774168245045,-908.46,0.00031693,2]
[408718405,1774168245054,-175.58471718,0.00032,120]
[408718406,1774168245064,-3807.75747175,0.00032116,2]
[408718407,1774168245074,-362.72905046,0.00032222,30]
[408718408,1774168245083,-592.52,0.000323,7]
[408718409,1774168245093,-194.73,0.00032437,2]
[408718410,1774168245102,-991.51,0.000325,7]
[408718411,1774168245111,-500.0,0.00032603,2]
[408718412,1774168245122,-500.0,0.00032603,2]
[408718413,1774168245132,-500.0,0.00032603,2]
[408718414,1774168245143,-500.0,0.00032603,2]
[408718415,1774168245154,-332.01363663,0.00032603,2]
[408718416,1774168245163,-150.0,0.00032603,2]
[408718417,1774168245175,-150.0,0.00032603,2]
[408718418,1774168245185,-200.0,0.00032603,2]
[408718419,1774168245194,-874.41,0.00032877,2]
[408718420,1774168245203,-600.0,0.00032877,120]
[408718421,1774168245213,-245.0,0.00032984,30]
[408718422,1774168245223,-472.94793643,0.00033,30]
[408718423,1774168245233,-500.0,0.00033637,120]
[408718424,1774168245243,-3514.0,0.00033862,2]
[408718425,1774168245253,-245.0,0.00033984,30]
[408718426,1774168245262,-194.73,0.00034013,2]
[408718427,1774168245271,-1165.19,0.000341,30]
[408718428,1774168245280,-2000.0,0.00034105,2]
[408718429,1774168245289,-2000.0,0.00034105,2]
[408718430,1774168245299,-2000.0,0.00034105,2]
[408718431,1774168245308,-2000.0,0.00034105,2]
[408718432,1774168245317,-2000.0,0.00034105,2]
[408718433,1774168245326,-2000.0,0.00034105,2]
[408718434,1774168245335,-2000.0,0.00034105,2]
[408718435,1774168245345,-2000.0,0.00034105,2]
[408718436,1774168245355,-2000.0,0.00034105,2]
[408718437,1774168245364,-2000.0,0.00034105,2]
[408718438,1774168245374,-362.72905046,0.00034444,30]
[408718439,1774168245383,-414.26,0.00034577,60]
[408718440,1774168245392,-2768.49,0.00034625,2]
[408718441,1774168245401,-165.6963,0.000349,2]
[408718442,1774168245413,-245.0,0.00034984,30]
[408718443,1774168245423,-275.46224746,0.00034998,61]
[408718444,1774168245432,-233.44865962,0.00035,30]
[408718445,1774168245442,-1165.76431781,0.00035,30]
[408718446,1774168245463,-1851.1161255,0.00035,30]
[408718448,1774168245474,-160.0,0.00035,30]
[408718449,1774168245486,-615.05937721,0.00035,30]
[408718450,1774168245497,-52481.0,0.000351,2]
[408718451,1774168245507,-2000.0,0.00035388,2]
[408718452,1774168245517,-2000.0,0.00035388,2]
[408718453,1774168245527,-2000.0,0.00035388,2]
[408718454,1774168245536,-2000.0,0.00035388,2]
[408718455,1774168245546,-2000.0,0.00035388,2]
[408718456,1774168245556,-2000.0,0.00035388,2]
[408718457,1774168245565,-2000.0,0.00035388,2]
[408718458,1774168245575,-2000.0,0.00035388,2]
[408718459,1774168245586,-2000.0,0.00035388,2]
[408718460,1774168245595,-2000.0,0.00035388,2]
[408718461,1774168245605,-908.46,0.00035413,2]
[408718462,1774168245615,-277.15195125,0.00035499,10]
[408718463,1774168245624,-37118.03,0.000355,7]
[408718464,1774168245635,-1000.0,0.00035553,2]
[408718465,1774168245644,-471.13302187,0.00035589,120]
[408718466,1774168245655,-315.21465341,0.00035589,120]
[408718467,1774168245665,-2126.3,0.000356,2]
[408718468,1774168245675,-500.0,0.00035606,120]
[408718469,1774168245685,-874.41,0.00035616,2]
[408718470,1774168245695,-5533.0,0.000359,3]
[408718471,1774168245705,-2000.0,0.00035927,2]
[408718472,1774168245715,-2000.0,0.00035927,2]
[408718473,1774168245726,-2000.0,0.00035927,2]
[408718474,1774168245736,-2000.0,0.00035927,2]
[408718475,1774168245746,-2000.0,0.00035927,2]
[408718476,1774168245758,-2000.0,0.00035927,2]
[408718477,1774168245767,-2000.0,0.00035927,2]
[408718478,1774168245776,-2000.0,0.00035927,2]
[408718479,1774168245786,-2000.0,0.00035927,2]
[408718480,1774168245795,-2000.0,0.00035927,2]
[408718481,1774168245804,-245.0,0.00035984,30]
[408718482,1774168245817,-300.0,0.00036,10]
[408718483,1774168245827,-190.82957068,0.00036,120]
[408718484,1774168245838,-991.51,0.00036,30]
[408718485,1774168245848,-521.0,0.00036,21]
[408718486,1774168245858,-279.31,0.000361,7]
[408718487,1774168245868,-893.98,0.000363,30]
[408718488,1774168245879,-151.0,0.00036459,2]
[408718489,1774168245888,-151.0,0.00036459,2]
[408718490,1774168245898,-151.0,0.00036459,2]
[408718491,1774168245908,-600.0,0.00036459,120]
[408718492,1774168245918,-300.0,0.00036459,2]
[408718493,1774168245928,-300.0,0.00036459,2]
[408718494,1774168245938,-300.0,0.00036459,30]
[408718495,1774168245948,-600.0,0.00036459,30]
[408718496,1774168245958,-2000.0,0.00036474,2]
[408718497,1774168245967,-2000.0,0.00036474,2]
[408718498,1774168245977,-2000.0,0.00036474,2]
[408718499,1774168245987,-2000.0,0.00036474,2]
[408718500,1774168245996,-2000.0,0.00036474,2]
[408718501,1774168246010,-2000.0,0.00036474,2]
[408718502,1774168246020,-2000.0,0.00036474,2]
[408718503,1774168246030,-2000.0,0.00036474,2]
[408718504,1774168246040,-2000.0,0.00036474,2]
[408718505,1774168246050,-2000.0,0.00036474,2]
[408718506,1774168246061,-2395.0,0.00036566,5]
[408718507,1774168246071,-2116.0,0.00036566,5]
[408718508,1774168246080,-1546.03086757,0.00036611,2]
[408718509,1774168246090,-1857.49656676,0.00036611,2]
[408718510,1774168246099,-203.24950289,0.0003665,64]
[408718511,1774168246108,-362.72905046,0.00036667,30]
[408718512,1774168246118,-1085.5,0.00036695,5]
[408718513,1774168246128,-5533.0,0.000367,5]
[408718514,1774168246138,-3514.0,0.00036862,2]
[408718515,1774168246148,-3386.496,0.00036926,46]
[408718516,1774168246158,-245.0,0.00036984,30]
[408718517,1774168246168,-1165.19,0.00037,30]
[408718518,1774168246177,-3807.75747175,0.00037005,2]
[408718519,1774168246187,-223.07,0.00037007,2]
[408718520,1774168246196,-2000.0,0.00037029,2]
[408718521,1774168246209,-2000.0,0.00037029,2]
[408718522,1774168246219,-2000.0,0.00037029,2]
[408718523,1774168246228,-2000.0,0.00037029,2]
[408718524,1774168246237,-2000.0,0.00037029,2]
[408718525,1774168246247,-2000.0,0.00037029,2]
[408718526,1774168246257,-2000.0,0.00037029,2]
[408718527,1774168246266,-2000.0,0.00037029,2]
[408718528,1774168246275,-2000.0,0.00037029,2]
[408718529,1774168246285,-2000.0,0.00037029,2]
[408718530,1774168246295,-592.52,0.000371,30]
[408718531,1774168246305,-193.26486285,0.000372,120]
[408718532,1774168246314,-193.26486284,0.000372,120]
[408718533,1774168246323,-155.29593317,0.00037287,66]
[408718534,1774168246333,-500.0,0.00037507,2]
[408718536,1774168246343,-1093.0,0.00037517,5]
[408718538,1774168246354,-2000.0,0.00037521,120]
[408718540,1774168246364,-37118.03,0.000377,7]
[408718542,1774168246373,-753.63008624,0.000379,120]
[408718544,1774168246383,-245.0,0.00037984,30]
[408718546,1774168246392,-699.16,0.00038034,30]
[408718549,1774168246406,-264.99,0.00038034,30]
[408718551,1774168246419,-810.57,0.00038034,30]
[408718553,1774168246429,-305.51734344,0.000381,33]
[408718555,1774168246440,-2620.05338686,0.00038272,120]
[408718557,1774168246450,-340.10209675,0.00038272,120]
[408718560,1774168246462,-1433.51132897,0.00038272,120]
[408718562,1774168246471,-991.51,0.000383,30]
[408718563,1774168246482,-217.56047974,0.00038329,120]
[408718566,1774168246492,-1093.0,0.00038339,7]
[408718567,1774168246501,-168.4677,0.000386,2]
[408718570,1774168246511,-1299.86828,0.000386,120]
[408718572,1774168246520,-2126.3,0.000387,30]
[408718574,1774168246530,-414.26,0.00038769,90]